Cogmind - Beta 14 @@@ ROGUE MODE // 2024.11.16 @ 17:00:26 Player: Arzon Result: Destroyed by D-53 Grenadier with Mini Grenade Launcher Performance ------------- Evolutions (0) 0 Regions Visited (4) 800 Robots Destroyed (13) 65 Value Destroyed (311) 311 Prototype IDs (4) 80 Alien Tech Used (0) 0 Bonus (0) 0 TOTAL SCORE: 1256 Bonus ------- None Cogmind --------- Core Integrity 0/250 Matter 241/300 Energy 125/125 System Corruption 0% Temperature Cool (9) Movement Core (200) Ox3 Location -9/Mines Parts ------- > --- POWER (1) -------- Light Ion Engine > --- PROPULSION (2) --- (None) > --- UTILITY (2) ------ Small Storage Unit > --- WEAPON (2) ------- Rocket Launcher > --- INVENTORY (8) ---- Light Ion Engine Light Treads Light Treads Improved Heat Sink Experimental Sensor Array Light Assault Rifle Mining Laser Mining Laser Peak State ------------ > --- POWER ------------ Light Nuclear Core > --- PROPULSION ------- Aluminum Leg Aluminum Leg > --- UTILITY ---------- Small Storage Unit > --- WEAPON ----------- Assault Rifle Assault Rifle > --- INVENTORY -------- Light Ion Engine Light Ion Engine Light Treads Light Treads Aluminum Leg Aluminum Leg Improved Heat Sink Light Assault Rifle [Rating: 9] Favorites ----------- Power Light Ion Engine Engine Light Ion Engine Power Core Light Nuclear Core Propulsion Aluminum Leg Treads Light Treads Leg Aluminum Leg Utility Small Storage Unit Storage Small Storage Unit Weapon Grenade Launcher Ballistic Gun Assault Rifle Launcher Grenade Launcher Special Melee Weapon Datajack Build | -11 -10 -10 -10 -9 ------- Run | Yrd Mat Min Exi Min Slots Evolved . | . . . . . Power . | . . . . . Propulsion . | . . . . . Utility . | . . . . . Weapon . | . . . . . Parts Attached 17 | 6 10 1 . . Power 3 | 1 2 . . . Engine 2 | 1 1 . . . Core 1 | . 1 . . . Reactor . | . . . . . Propulsion 6 | 2 4 . . . Treads 2 | 2 . . . . Leg 4 | . 4 . . . Wheel . | . . . . . Hover . | . . . . . Flight . | . . . . . Utility 1 | 1 . . . . Device . | . . . . . Storage 1 | 1 . . . . Processor . | . . . . . Hackware . | . . . . . Protection . | . . . . . Artifact . | . . . . . Weapon 7 | 2 4 1 . . Energy Gun . | . . . . . Energy Cannon . | . . . . . Ballistic Gun 4 | 2 2 . . . Ballistic Cannon . | . . . . . Launcher 2 | . 1 1 . . Special Weapon . | . . . . . Impact Weapon . | . . . . . Slashing Weapon . | . . . . . Piercing Weapon . | . . . . . Special Melee Weapon 1 | . 1 . . . Unidentified Prototypes . | . . . . . Parts Lost 4 | . 1 . . 3 Power . | . . . . . Propulsion 2 | . . . . 2 Utility . | . . . . . Weapon 2 | . 1 . . 1 Highest Loss Streak 3 | . 1 . . 3 To Critical Strikes . | . . . . . Average Slot Usage (%) 84 | . 85 85 85 84 Engine 12 | . 7 14 14 14 Core 1 | . 6 . . . Leg 27 | . 28 28 28 27 Storage 14 | . 14 14 14 14 Ballistic Gun 6 | . 24 2 . . Launcher 21 | . 3 25 28 28 Peak Build Rating 9 | 6 9 8 8 8 Average Rating 7 | 4 7 7 8 7 On Entrance 5 | . 6 6 8 8 Naked Turns . | . . . . . Heaviest Build 15 | 12 14 15 15 15 Greatest Support 40 | 40 20 20 20 20 Greatest Overweight (x) . | . . . . . Average Overweight (x) . | . . . . . Largest Inventory Capacity 8 | 8 8 8 8 8 Average Capacity 7 | 7 8 8 8 8 Most Carried 8 | 5 8 8 8 8 Average Carried 7 | 3 5 7 8 8 Final Capacity 8 | 8 8 8 8 8 Final Carried 8 | 4 7 8 8 8 Class Distribution -------------------- 100% | Mutant Dominant Class ---------------- Mutant | -10/Materials Mutant | -10/Mines Mutant | -10/Exiles Mutant | -9/Mines Resources | -11 -10 -10 -10 -9 ----------- Run | Yrd Mat Min Exi Min Matter Collected 678 | 215 330 114 . 19 Remotely . | . . . . . Salvage Created 411 | . 400 11 . . Parts 25 | . 25 . . . Haulers Intercepted . | . . . . . Recyclers Shooed . | . . . . . Parts Field Recycled . | . . . . . Retrieved Matter . | . . . . . Parts Self-Destructed . | . . . . . Prevented . | . . . . . Kills | -11 -10 -10 -10 -9 ------- Run | Yrd Mat Min Exi Min Combat Hostiles Destroyed 6 | . 5 1 . . Guns 5 | . 5 . . . AOE 1 | . . 1 . . Classes Destroyed 6 | . 6 . . . Worker 1 | . 1 . . . Tunneler 1 | . 1 . . . Recycler 2 | . 2 . . . Operator 1 | . 1 . . . Watcher 2 | . 2 . . . Grunt 6 | . 5 1 . . Best Kill Streak 3 | . 3 1 . . Combat Bots Only 2 | . 2 1 . . Max Kills in Single Turn 3 | . 3 1 . . Gunslinging . | . . . . . Exploded 1 | . . 1 . . Melee . | . . . . . Uniques/NPCs Destroyed . | . . . . . Combat | -11 -10 -10 -10 -9 -------- Run | Yrd Mat Min Exi Min Hostile Shots Fired 57 | . 42 4 . 11 Missed 13 | . 10 2 . 1 Damage Taken 955 | . 470 72 . 413 Core 283 | . 103 . . 180 Absorbed by Shields . | . . . . . Core Remaining (%) 100 | 100 . . . . Volleys Fired 47 | . 39 4 . 4 Largest 2 | . 2 2 . 2 Hottest 63 | . 50 63 . 63 Shots Fired 91 | . 76 8 . 7 Gun 75 | . 75 . . . Cannon . | . . . . . Launcher 16 | . 1 8 . 7 Special . | . . . . . Kinetic 75 | . 75 . . . Thermal . | . . . . . Explosive 16 | . 1 8 . 7 Electromagnetic . | . . . . . Robot Hit Streak 17 | . 17 3 . 3 Robot Miss Streak 3 | . 3 1 . 3 Penetration Max . | . . . . . Secondary Targets 2 | . 2 . . . Max Gunslinging Chain 1 | . 1 . . . Shots Hit Robots 63 | . 55 5 . 3 Core Hits 35 | . 23 2 . 10 Critical Kills . | . . . . . Critical Parts Destroyed . | . . . . . Critical Strikes . | . . . . . Melee Attacks . | . . . . . Impact . | . . . . . Slashing . | . . . . . Piercing . | . . . . . Sneak Attacks . | . . . . . Combat Hostiles . | . . . . . Follow-up Attacks . | . . . . . Damage Inflicted 1010 | . 772 149 . 89 Guns 665 | . 665 . . . Cannons . | . . . . . Explosions 345 | . 107 149 . 89 Melee . | . . . . . Ramming . | . . . . . Kinetic 665 | . 665 . . . Thermal . | . . . . . Explosive 345 | . 107 149 . 89 Electromagnetic . | . . . . . Impact . | . . . . . Slashing . | . . . . . Piercing . | . . . . . Highest Corruption . | . . . . . Average Corruption . | . . . . . Corruption Purged . | . . . . . Corruption Blocked . | . . . . . Overload Shots . | . . . . . Overflow Damage . | . . . . . Projectiles . | . . . . . Explosions . | . . . . . Melee . | . . . . . Knockbacks . | . . . . . Impact . | . . . . . Kinetic . | . . . . . Secondary . | . . . . . Self-Inflicted Damage 56 | . 15 41 . . Shots 2 | . 1 1 . . Rammed . | . . . . . Targets Rammed . | . . . . . Kicked . | . . . . . Crushed . | . . . . . Highest Temperature 44 | . 44 30 . 9 Average Temperature 16 | . 19 16 . 5 Received Heat Transfer 255 | . 237 18 . . Siege Activations . | . . . . . Robots Corrupted . | . . . . . Combat Hostiles . | . . . . . Parts Fried . | . . . . . Impact Corruptions . | . . . . . Robots Melted . | . . . . . Combat Hostiles . | . . . . . Parts Melted . | . . . . . Heat Transferred . | . . . . . Parts Sabotaged . | . . . . . Parts Stolen . | . . . . . Parts Stripped . | . . . . . Power Chain Reactions . | . . . . . Alert | -11 -10 -10 -10 -9 ------- Run | Yrd Mat Min Exi Min Peak Influence 244 | . 244 165 . 31 Initial 94 | . . 94 . . Average 93 | . 143 124 . 2 Maximum Alert Level 1 | . 1 . . . Low Security (%) 83 | 100 56 100 . 100 Level 1 16 | . 43 . . . Level 2 . | . . . . . Level 3 . | . . . . . Level 4 . | . . . . . Level 5 . | . . . . . High Security . | . . . . . Max Security . | . . . . . Squads Dispatched 1 | . 1 . . . Investigation . | . . . . . Extermination . | . . . . . Reinforcement 1 | . 1 . . . Assault . | . . . . . Garrison . | . . . . . Intercept . | . . . . . Searches Triggered . | . . . . . Construction Impeded . | . . . . . Haulers Reinforced . | . . . . . Active Scanning Responses . | . . . . . Cargo Convoy Interrupts . | . . . . . Stealth | -11 -10 -10 -10 -9 --------- Run | Yrd Mat Min Exi Min Distress Signals 1 | . 1 . . . Communications Jammed . | . . . . . Distress Signals . | . . . . . Times Spotted 16 | . 10 1 . 5 Peak Tracking Total 3 | . 3 1 . 3 Tactical Retreats . | . . . . . Traps | -11 -10 -10 -10 -9 ------- Run | Yrd Mat Min Exi Min Traps Triggered 1 | . 1 . . . Indirectly . | . . . . . Trap Hack Attempts . | . . . . . Triggered . | . . . . . Disarmed . | . . . . . Reprogrammed . | . . . . . Reused . | . . . . . Traps Extracted . | . . . . . Installed . | . . . . . Triggered 1 | . . . . 1 Machines | -11 -10 -10 -10 -9 ---------- Run | Yrd Mat Min Exi Min Machines Disabled . | . . . . . Max in Single Turn . | . . . . . Machines Repaired . | . . . . . Machines Dismantled . | . . . . . Machines Sabotaged . | . . . . . Overloaded Fab Kills . | . . . . . Hacking | -11 -10 -10 -10 -9 --------- Run | Yrd Mat Min Exi Min Machines Accessed 6 | . 2 . 4 . Terminals 2 | . 2 . . . Fabricators . | . . . . . Repair Stations . | . . . . . Recycling Units . | . . . . . Scanalyzers . | . . . . . Garrison Access . | . . . . . Total Hacks 9 | . 5 . 4 . Successful 7 | . 3 . 4 . Failed 2 | . 2 . . . Catastrophic . | . . . . . Database Lockouts . | . . . . . Manual . | . . . . . Terminals 5 | . 5 . . . Fabricators . | . . . . . Repair Stations . | . . . . . Recycling Units . | . . . . . Scanalyzers . | . . . . . Garrison Access . | . . . . . Terminal Hacks 7 | . 3 . 4 . Record 4 | . . . 4 . Prototype ID Bank 2 | . 2 . . . Locate Traps 1 | . 1 . . . Fabricator Hacks . | . . . . . Repair Station Hacks . | . . . . . Recycling Unit Hacks . | . . . . . Scanalyzer . | . . . . . Garrison Access Hacks . | . . . . . Unauthorized Hacks . | . . . . . Terminals . | . . . . . Fabricators . | . . . . . Repair Stations . | . . . . . Recycling Units . | . . . . . Scanalyzers . | . . . . . Garrison Access . | . . . . . Data Cores Recovered . | . . . . . Used . | . . . . . Hacking Detections 2 | . 2 . . . Full Trace Events . | . . . . . Feedback Events . | . . . . . Feedback Blocked . | . . . . . Robot Schematics Acquired . | . . . . . Robots Built . | . . . . . Authchips . | . . . . . Time . | . . . . . Total Robot Build Rating . | . . . . . Part Schematics Acquired . | . . . . . Parts Built . | . . . . . Authchips . | . . . . . Time . | . . . . . Total Part Build Rating . | . . . . . Parts Repaired . | . . . . . Time . | . . . . . Parts Recycled . | . . . . . Recycled Matter . | . . . . . Retrieved Matter . | . . . . . Retrieved Components . | . . . . . Parts Scanalyzed . | . . . . . Part Schematics Acquired . | . . . . . Parts Damaged . | . . . . . Bothacking | -11 -10 -10 -10 -9 ------------ Run | Yrd Mat Min Exi Min Used RIF Installer . | . . . . . Robots Hacked . | . . . . . Non-combat . | . . . . . Combat . | . . . . . Robot Hacks Applied . | . . . . . Relay Couplers Released . | . . . . . Fabnet Peak Effective % . | . . . . . Robots Rewired . | . . . . . Allies Hacked . | . . . . . Hacks Repelled . | . . . . . Allies | -11 -10 -10 -10 -9 -------- Run | Yrd Mat Min Exi Min Total Allies . | . . . . . Largest Group . | . . . . . Highest-Rated Group . | . . . . . Highest-Rated Ally . | . . . . . Total Orders . | . . . . . Ally Attacks . | . . . . . Total Damage . | . . . . . Kills . | . . . . . Allies Corrupted . | . . . . . Allies Melted . | . . . . . Intel | -11 -10 -10 -10 -9 ------- Run | Yrd Mat Min Exi Min Robot Analysis Total . | . . . . . Derelict Logs Recovered 1 | . . 1 . . Drone Launches . | . . . . . Drone Recoveries . | . . . . . Exploration | -11 -10 -10 -10 -9 ------------- Run | Yrd Mat Min Exi Min Turns Passed 1475 | 79 368 297 507 224 Spaces Moved 1072 | 47 190 235 423 177 Core 10 | 10 . . . . Treads 37 | 37 . . . . Legs 1025 | . 190 235 423 177 Wheels . | . . . . . Hover . | . . . . . Flight . | . . . . . Fastest Speed 50 | 50 120 120 120 120 Average Speed 120 | 136 120 120 120 120 Slowest Speed 160 | 160 120 120 120 120 Overloaded Moves . | . . . . . Propulsion Burnouts . | . . . . . Robots Hopped . | . . . . . Cave-ins Triggered . | . . . . . Exploration Rate (%) 46 | 4 27 60 90 52 Regions Visited 4 Branch Regions 3 Pre-discovered Areas 1 | . . 1 . . Known Exits Taken . | . . . . . Unknown Exits Taken 4 | 1 1 1 1 . Scrap Searched 2 | . . 1 . 1 Spaces Dug . | . . . . . Terrain Destroyed 104 | . 5 66 . 33 Melee . | . . . . . Projectile . | . . . . . AOE 104 | . 5 66 . 33 Terrain Rammed . | . . . . . Walls Destroyed . | . . . . . Machines Disabled . | . . . . . Actions | -11 -10 -10 -10 -9 --------- Run | Yrd Mat Min Exi Min Total 1159 | 62 252 242 422 181 Wait . | . . . . . Move 1068 | 46 189 234 422 177 Hop . | . . . . . Pick Up 21 | 10 9 2 . . Fast Attach . | . . . . . Attach 7 | 6 1 . . . Detach . | . . . . . Swap 10 | . 9 1 . . Drop 6 | . 5 1 . . Fire 47 | . 39 4 . 4 Melee . | . . . . . Ram . | . . . . . Kick . | . . . . . Crush . | . . . . . Escape Stasis . | . . . . . Rewire . | . . . . . Trap . | . . . . . Miscellaneous . | . . . . . Route ------- -11/Scrapyard -10/Materials -10/Mines -10/Exiles -9/Mines History --------- Turn | Location | Event 8 | -11/Scrapyard | Discovered new exit (range 15) 80 | -11/Scrapyard | Entered Materials 300 | -10/Materials | Discovered new exit (range 9) 316 | -10/Materials | Build established: Mutant 448 | -10/Materials | Entered Mines 480 | -10/Mines | Met a Derelict bent on vengeance 501 | -10/Mines | Received a Rocket Launcher from a helpful Derelict 564 | -10/Mines | Found a damaged Exp. Sensor Array with a note attached 567 | -10/Mines | Found Prototype Device 690 | -10/Mines | Learned location of Storage (-7) 739 | -10/Mines | Deemed a non-threat by the Exiles lab entrance 740 | -10/Mines | Discovered new exit (range 5) 745 | -10/Mines | Entered Exiles 745 | -10/Exiles | Found Exiles lab abandoned 1238 | -10/Exiles | Discovered new exit (range 14) 1252 | -10/Exiles | Entered Mines 1441 | -9/Mines | Assembled infested the area 1446 | -9/Mines | Assisted by a Guerilla fighting off Assembled 1467 | -9/Mines | Core integrity fell below 50% 1475 | -9/Mines | Core integrity fell below 20% 1476 | -9/Mines | Destroyed by D-53 Grenadier with Mini Grenade Launcher Last Messages --------------- Found Imp. Aluminum Leg. Found 44 Matter. Acquired 19 matter. S-10 Pest triggered Dirty Bomb Trap. An explosion rips through the floor. S-10 Pest destroyed. ALERT: Infestation in the mines, dispatching Demolisher response squad. A derelict emerges from the shadows: "You need to get out of here! I've been tracking a group of Assembled to figure out where they're coming from, and they're closing on this area, come on!" R-06 Scavenger collects Lgt. Ion Engine. C-30 ARC bursts open, deploying its payload. D-53 Grenadier unfolds itself. Aluminum Leg destroyed. The unstable cave ceiling collapses. Grenade Launcher destroyed. Aluminum Leg destroyed. Map ----- +----------------------------------------------------+ | ??## ##??## ?????????????????? | | ?## #### ######### ??????????????????? | | ?# ##????????????????????????????? | | ?# ###?????????????????????????????? | | ??# ##???????????????????????????????? | | ### #????????????????????????????????? | | ## #???????????????????????????????? | | ##### #???????????????????????????????? | | ####???## #???????????????????????????????? | | ###???????# ##???????????????????????????????? | | ##?????????# ##????????????????????????????????? | | #??????????# ##?????????????????????????????????? | | #??????????###??????????????????????????????????? | | ##?????????????????????????????? ????????????????? | | ??????????????????????????????? ????????????????? | | ??????????????????????????????? ????????????????? | | ?????????????????????????????? ""???aa???????????? | | ?????????????????????????????? """ ???????????? | | ????????????????????????????? """ ???????????? | | ????????????????????????????# ????????????? | | ??????????????????????###### #?????????????? | | ?????????????????????## ???????????????? | | ###########?????????## ?????????????????? | | #?????????# #??????????????????? | | #?????????# #???########???????? | | ######## ?????##### @ ##??# #???????? | | #??????# #?????# ;#### #???????? | | #??????# #?????# ### ;;;## """ #???????? | | #??????# #?????# #?## % """ #???????? | | #??????# #?????# #??## ### """ #???????? | | #??????# ####### #???##* #?# #???????? | | #????### #???? # #########???????? | | #???## #########????# d ##???????????????? | | #???# ####?????????# #????????????????? | | #???# ########### d ????????????????? | | #???## #??????????????? | | #????# """ #### ##### ??????????????? | | ##???# """ ##??# #???##### % ??????????????? | | ##??# """ ##???# #??????? ##?????????????? | | #??# ##??### #??????? ##??????????????? | | ##?# #???# #??????? ##???????????????? | | #### ##???# ###??????? ##????????????????? | | #######????# #???????? ??????????????????? | | #?????????# #????????? ??????????????????? | | ########### #???????????????????????????????? | | # #???????????????????????????????? | | # ## ########???????????????????????????????? | | ## ### #??????????????????????????????????????? | | ?#####?# #??????????????????????????????????????? | | ???????# #??????????????????????????????????????? | +----------------------------------------------------+ Best States ------------- Heat Dissipation 25 Energy Generation 14 Energy Capacity 160 Matter Stores 300 Matter Capacity 300 Sight Range 16 Terrain Scan Density 10 Evasion (%) 55 Recoil Reduction 2 Item Schematics ----------------- None Robot Schematics ------------------ None Fabricated ------------ Nothing Alien Tech Used ----------------- None Achievements -------------- None Challenges ------------ None Game ------ Seed PulseMediumSystem Manual? 0 Play Time 00:14:18 Cumulative 8.7 hours Start 2024.11.16 @ 16:47:49 End 2024.11.16 @ 17:00:26 Sessions 1 Manual Loads 0 Difficulty Rogue Special Mode None Game No. 10 Rogue 10 Adventurer 0 Explorer 0 Win Type - Total 0 Types 0/0/0/0/0/0/0/0/0 Lore% 10 Gallery% 9 Achievement% 13 Wizard Run 0 Options --------- Layout 1 ASCII 0 Keyboard 0 Movement Mouse Keybinds 0 Fullscreen 1 Font 48/Smallcaps Map View 50x35 Zoom Use 0% Tactical HUD 0 Map Filters NONE Filters NONE Steam 1 RUN: 9fc3a292-7f0c-4545-95a8-6750aba3ec19